bitfinex/quotes_SOLUSD_20220117
["timestamp","ask_amount","ask_price","bid_price","bid_amount"]
[1642413520125,1.57786625,143.83,143.75,10.4312]
[1642413520326,1.97990224,143.84,143.76,22.7823]
[1642413520527,1.97990224,143.84,143.76,30.5823]
[1642413520924,1.97990224,143.85,143.76,30.5823]
[1642413521124,1.97990224,143.85,143.76,100.1723]
[1642413521524,0.25,143.84,143.76,110.6026]
[1642413522126,0.25,143.84,143.76,41.0126]
[1642413522329,0.25,143.84,143.78,0.18453725]
[1642413523027,1.97990224,143.86,143.78,0.18453725]
[1642413523225,1.97990224,143.86,143.79,44.37139752]
[1642413523425,0.25,143.85,143.79,44.37139752]
[1642413525154,36.22230224,143.87,143.79,44.37139752]
[1642413525352,26.10230224,143.87,143.79,50.27339752]
[1642413525755,1.97990224,143.86,143.79,50.27339752]
[1642413526356,1.97990224,143.86,143.8,10.6778]
[1642413527155,1.97990224,143.88,143.8,104.7319]
[1642413527358,1.97990224,143.88,143.81,0.18449354]
[1642413527555,1.97990224,143.88,143.81,10.61119354]
[1642413528155,47.8463952,143.91,143.81,10.61119354]
[1642413528556,0.25,143.9,143.82,23.3256]
[1642413530258,1.97990224,143.91,143.83,69.84]
[1642413530862,1.97990224,143.91,143.83,0.25]
[1642413531562,3.71894649,143.93,143.84,44.24226779]
[1642413531761,0.25,143.92,143.84,67.40006779]
[1642413532161,0.25,143.92,143.85,0.18443529]
[1642413535269,0.25,143.93,143.85,0.18443529]
[1642413537271,0.25,143.93,143.84,67.58447396]
[1642413540272,37.33995689,143.94,143.84,67.58447396]
[1642413540671,1.97990224,143.93,143.84,67.58447396]
[1642413541473,26.91315689,143.94,143.84,67.58447396]
[1642413542276,0.25,143.93,143.86,0.18442073]
[1642413543776,2.22990224,143.93,143.86,0.18442073]
[1642413546614,3.96894649,143.93,143.86,0.18442073]
[1642413546812,14.08894649,143.93,143.86,0.18442073]
[1642413547312,1.97990224,143.91,143.84,67.58445941]
[1642413547715,0.25,143.9,143.84,67.58445941]
[1642413549715,0.25,143.9,143.84,44.42665941]
[1642413550315,2.22990224,143.9,143.84,44.42665941]
[1642413550515,1.97990224,143.9,143.84,44.42665941]
[1642413551318,1.97990224,143.91,143.84,44.42665941]
[1642413551523,1.97990224,143.91,143.84,0.18439162]
[1642413551917,0.25,143.9,143.84,0.18439162]
[1642413552321,0.25,143.9,143.82,23.74262073]
[1642413552519,0.25,143.9,143.83,43.59805236]
[1642413553419,2.22990224,143.9,143.83,43.59805236]
[1642413554324,1.97990224,143.89,143.83,43.59805236]
[1642413554520,1.97990224,143.89,143.82,23.74262073]
[1642413554721,0.25,143.88,143.82,23.74262073]
[1642413554920,2.22990224,143.88,143.82,23.74262073]
[1642413555120,3.96894649,143.88,143.82,0.18442073]
[1642413555727,35.60894382,143.87,143.82,0.18442073]
[1642413556125,0.25,143.86,143.82,0.18442073]
[1642413557221,2.22990224,143.86,143.79,69.4758673]
[1642413557423,1.08567076,143.82,143.79,0.18444985]
[1642413557821,0.25,143.81,143.79,0.18444985]
[1642413558623,1.03219997,143.8,143.79,0.18444985]
[1642413558822,0.25,143.81,143.79,0.18444985]
[1642413559023,1.08567076,143.82,143.8,5.03219997]
[1642413559421,1.08567076,143.82,143.79,0.18444985]
[1642413559821,1.03219997,143.81,143.79,0.18444985]
[1642413560022,1.97990224,143.86,143.79,0.18444985]
[1642413560023,12.09990224,143.86,143.79,0.18444985]
[1642413560320,0.25,143.85,143.79,0.18444985]
[1642413560521,1.97990224,143.86,143.79,0.18444985]
[1642413560724,1.97990224,143.86,143.79,10.61274985]
[1642413560922,1.97990224,143.87,143.79,80.20274985]
[1642413561126,1.97990224,143.87,143.8,71.79286172]
[1642413561424,1.97990224,143.87,143.8,141.38286172]
[1642413561827,3.94821422,143.9,143.8,141.38286172]
[1642413562025,1.97990224,143.91,143.8,141.38286172]
[1642413562224,1.97990224,143.91,143.81,0.18449354]
[1642413562424,1.97990224,143.91,143.81,10.61099354]
[1642413562655,1.97990224,143.91,143.82,0.25]
[1642413563025,1.97990224,143.91,143.82,24.1615]
[1642413563229,1.97990224,143.91,143.83,42.51789067]
[1642413563428,1.97990224,143.91,143.84,23.1445]
[1642413564729,0.25,143.9,143.84,23.1445]
[1642413567432,0.25,143.9,143.86,0.18442073]
[1642413572234,0.25,143.9,143.84,23.32889162]
[1642413573034,2.22990224,143.9,143.84,23.32889162]
[1642413573234,0.25,143.89,143.84,23.32889162]
[1642413575336,2.22990224,143.91,143.84,23.32889162]
[1642413575739,1.97990224,143.9,143.84,23.32889162]
[1642413576340,0.25,143.89,143.84,23.32889162]
[1642413577245,0.25,143.89,143.86,0.18442073]
[1642413577445,1.03219997,143.88,143.86,0.18442073]
[1642413580076,1.03219997,143.88,143.86,2.18442073]
[1642413580379,0.25,143.9,143.86,46.63475663]
[1642413580776,2.22990224,143.9,143.86,46.63475663]
[1642413580976,1.97990224,143.9,143.86,46.63475663]
[1642413581175,0.25,143.89,143.86,46.63475663]
[1642413581378,1.03219997,143.88,143.86,46.63475663]
[1642413581575,1.03219997,143.88,143.86,41.60255666]
[1642413582084,1.03219997,143.88,143.86,41.41813593]
[1642413583184,1.03219997,143.88,143.79,10.4282]
[1642413583378,0.25,143.87,143.77,10.4301]
[1642413583578,0.25,143.87,143.78,22.5401]
[1642413584276,0.25,143.87,143.79,36.61931721]
[1642413584676,24.6571,143.87,143.79,36.61931721]
[1642413585079,26.63700224,143.87,143.79,36.61931721]
[1642413585480,37.06880224,143.87,143.79,36.61931721]
[1642413586485,106.65880224,143.87,143.79,36.61931721]
[1642413587382,106.65880224,143.87,143.81,0.18449354]
[1642413587581,37.06880224,143.87,143.81,0.18449354]
[1642413588584,69.59,143.86,143.81,0.18449354]
[1642413588785,0.25,143.85,143.81,0.18449354]
[1642413589685,2.22990224,143.85,143.81,0.18449354]
[1642413590087,113.47669817,143.85,143.81,0.18449354]
[1642413590386,125.64894242,143.85,143.81,0.18449354]
[1642413591490,1.97990224,143.84,143.81,0.18449354]
[1642413591888,0.25,143.83,143.81,0.18449354]
[1642413592088,0.25,143.83,143.79,36.80378162]
[1642413593290,0.25,143.84,143.79,36.80378162]
[1642413593491,0.25,143.84,143.79,0.18446441]
[1642413593690,94.2602,143.84,143.79,0.18446441]
[1642413596197,104.694,143.84,143.79,0.18446441]
[1642413596697,35.104,143.84,143.79,0.18446441]
[1642413597397,35.104,143.84,143.77,72.41498269]
[1642413597597,104.694,143.84,143.77,72.41498269]
[1642413597897,104.694,143.84,143.77,49.15678269]
[1642413598097,104.694,143.84,143.77,0.18449354]
[1642413598299,106.43304425,143.84,143.77,0.18449354]
[1642413598699,116.55304425,143.84,143.77,0.18449354]
[1642413598899,124.64104425,143.84,143.77,0.18449354]
[1642413600299,116.55304425,143.84,143.77,0.18449354]
[1642413600501,1.97990224,143.82,143.77,0.18449354]
[1642413600700,20.5577,143.81,143.77,0.18449354]
[1642413600900,47.43334425,143.81,143.77,0.18449354]
[1642413602301,47.43334425,143.81,143.71,38.04088544]
[1642413602502,69.59,143.8,143.71,38.04088544]
[1642413602802,10.438,143.78,143.71,38.04088544]
[1642413603204,0.25,143.77,143.71,38.04088544]
[1642413603802,10.12,143.8,143.71,38.04088544]
[1642413603803,10.4368,143.8,143.71,38.04088544]
[1642413604024,0.25,143.78,143.71,38.04088544]
[1642413604226,12.09990224,143.82,143.72,23.2535]
[1642413604429,0.25,143.81,143.72,23.2535]
[1642413604928,0.25,143.81,143.72,23.0035]
[1642413607034,31.9284208,143.81,143.72,23.0035]
[1642413607232,31.9284208,143.81,143.74,0.18459556]
[1642413607932,0.25,143.81,143.74,0.18459556]
[1642413609340,0.25,143.83,143.74,0.18459556]
[1642413609539,0.25,143.83,143.79,53.89911822]
[1642413611337,22.53390224,143.84,143.79,53.89911822]
[1642413611537,52.21306928,143.84,143.79,53.89911822]
[1642413612140,52.21306928,143.84,143.81,0.18449354]
[1642413612338,1.03219997,143.83,143.81,0.18449354]
[1642413612739,0.25,143.82,143.81,0.18449354]
[1642413614839,0.25,143.82,143.81,54.08361176]
[1642413615038,0.25,143.82,143.81,107.98272998]
[1642413616142,0.25,143.82,143.81,113.01492995]
[1642413618143,1.97990224,143.83,143.81,113.01492995]
[1642413618345,1.97990224,143.83,143.81,119.95892995]
[1642413619142,1.97990224,143.83,143.82,44.65146468]
[1642413620142,1.97990224,143.83,143.82,98.5505829]
[1642413620348,1.97990224,143.87,143.82,152.44970112]
[1642413620742,0.25,143.86,143.82,152.44970112]
[1642413622146,0.25,143.86,143.84,0.18444985]
[1642413622345,1.03219997,143.85,143.84,0.18444985]
[1642413622745,1.28219997,143.85,143.84,0.18444985]
[1642413623345,40.30076848,143.85,143.84,0.18444985]
[1642413623546,42.28067072,143.85,143.84,0.18444985]
[1642413625447,42.28067072,143.85,143.84,54.08356807]
[1642413625646,42.28067072,143.85,143.84,107.98268629]
[1642413626251,44.01971497,143.85,143.84,107.98268629]
[1642413626847,43.76971497,143.85,143.84,107.98268629]
[1642413628251,42.03981273,143.85,143.84,107.98268629]
[1642413628851,41.53981273,143.85,143.84,107.98268629]
[1642413629251,43.51971497,143.85,143.84,107.98268629]
[1642413629852,53.63971497,143.85,143.84,107.98268629]
[1642413630278,95.63971497,143.85,143.84,96.72423838]
[1642413630476,64.35804202,143.84,143.72,1.93123395]
[1642413630677,10.437,143.8,143.72,26.13903395]
[1642413630877,0.25,143.79,143.72,26.13903395]
[1642413631476,12.66520975,143.79,143.72,26.13903395]
[1642413632279,12.66520975,143.79,143.72,24.2078]
[1642413632480,23.10290975,143.79,143.72,24.2078]
[1642413636985,10.6877,143.79,143.72,24.2078]
[1642413637187,22.53630224,143.81,143.74,0.15385392]
[1642413637587,12.09990224,143.81,143.74,0.15385392]
[1642413638086,10.12,143.81,143.74,0.15385392]
[1642413639085,0.25,143.8,143.74,0.15385392]
[1642413639489,10.6854,143.82,143.74,23.31125392]
[1642413642192,10.6854,143.82,143.76,0.15382476]
[1642413642792,11.85904425,143.81,143.76,0.15382476]
[1642413642991,10.4382,143.8,143.76,0.15382476]
[1642413643196,12.42724425,143.8,143.76,0.15382476]
[1642413643494,81.95724425,143.8,143.76,0.15382476]
[1642413643692,95.80407681,143.8,143.76,0.15382476]
[1642413645294,95.30407681,143.8,143.76,0.15382476]
[1642413645696,81.45724425,143.8,143.76,0.15382476]
[1642413646696,122.47549342,143.8,143.76,0.15382476]
[1642413647096,122.47549342,143.8,143.71,41.03449957]
[1642413648299,10.12,143.79,143.71,41.03449957]
[1642413648498,10.4391,143.77,143.71,41.03449957]
[1642413648699,10.4391,143.77,143.71,0.15379561]
[1642413648898,0.25,143.76,143.71,0.15379561]
[1642413649099,3.87863176,143.76,143.71,0.15379561]
[1642413649298,83.52863176,143.76,143.71,0.15379561]
[1642413649700,10.41552909,143.75,143.71,0.15379561]
[1642413650100,0.25,143.74,143.71,0.15379561]
[1642413650301,0.53219996,143.73,143.71,0.15379561]
[1642413650501,8.81919996,143.73,143.71,0.15379561]
[1642413650904,0.25,143.72,143.71,0.15379561]
[1642413651403,41.26824917,143.72,143.71,0.15379561]
[1642413652100,41.26824917,143.72,143.67,24.75528309]
[1642413652906,0.25,143.72,143.67,24.75528309]
[1642413653303,10.12,143.74,143.67,24.75528309]
[1642413653902,10.12,143.74,143.68,44.3559758]
[1642413655606,10.12,143.78,143.68,44.3559758]
[1642413655806,0.25,143.77,143.68,44.3559758]
[1642413656010,3.62854317,143.79,143.69,22.5663]
[1642413657141,3.62854317,143.79,143.7,0.15391226]
[1642413657742,0.25,143.78,143.7,0.15391226]
[1642413659845,0.25,143.78,143.7,0.40391226]
[1642413660148,12.09990224,143.81,143.7,0.40391226]
[1642413660350,12.09990224,143.81,143.7,20.43148502]
[1642413660547,1.97990224,143.81,143.7,20.43148502]
[1642413660747,1.97990224,143.81,143.71,66.53154471]
[1642413661154,1.97990224,143.83,143.72,0.25]
[1642413661352,16.35011788,143.83,143.72,0.25]
[1642413662052,16.35011788,143.83,143.72,0.40388309]
[1642413662452,16.10925989,143.83,143.72,2.08511704]
[1642413662853,0.25,143.82,143.72,2.08511704]
[1642413664252,0.25,143.82,143.72,0.15388309]
[1642413666555,1.98904425,143.82,143.72,0.15388309]
[1642413667152,0.25,143.82,143.71,66.68539863]
[1642413667752,0.25,143.82,143.71,77.11959863]
[1642413667952,0.25,143.82,143.71,158.07137139]
[1642413668159,0.25,143.82,143.71,160.00260534]
[1642413668355,0.25,143.83,143.71,160.00260534]
[1642413668753,0.25,143.83,143.72,0.25]
[1642413669155,1.97990224,143.85,143.75,10.4315]
[1642413669357,1.97990224,143.85,143.76,23.2514]
[1642413669653,1.97990224,143.85,143.76,24.55317276]
[1642413669853,1.97990224,143.85,143.77,39.00785387]
[1642413670253,1.97990224,143.87,143.78,0.25]
[1642413670453,1.97990224,143.87,143.78,8.839]
[1642413670855,1.97990224,143.87,143.79,69.53]
[1642413671054,0.25,143.86,143.8,37.2180196]
[1642413671256,1.97990224,143.87,143.8,37.2180196]
[1642413672254,12.09990224,143.9,143.8,37.37178607]
[1642413672454,12.09990224,143.9,143.8,71.46918607]
[1642413673754,10.12,143.9,143.8,71.46918607]
[1642413674157,0.25,143.89,143.8,71.46918607]
[1642413674957,0.25,143.91,143.8,71.46918607]
[1642413675184,0.25,143.91,143.8,80.29818607]
[1642413675760,0.25,143.91,143.81,69.53]
[1642413676059,0.25,143.91,143.82,10.4264]
[1642413676359,20.98298615,143.93,143.82,10.4264]
[1642413676663,53.05157635,143.93,143.83,47.70933216]
[1642413677059,53.05157635,143.93,143.82,34.2245]
[1642413677259,53.05157635,143.93,143.82,23.95183733]
[1642413677861,0.25,143.92,143.82,23.95183733]
[1642413678261,0.25,143.92,143.83,43.66080794]
[1642413682267,0.25,143.92,143.85,0.15369365]
[1642413683194,53.05157635,143.93,143.85,0.15369365]
[1642413683397,5.60802632,143.95,143.85,0.15369365]
[1642413683894,1.97990224,143.95,143.85,0.15369365]
[1642413684301,38.97656835,143.94,143.85,0.15369365]
[1642413685298,0.25,143.93,143.85,0.15369365]
[1642413686198,10.6773,143.93,143.85,0.15369365]
[1642413687300,10.6773,143.93,143.84,22.69986453]
[1642413688201,0.25,143.93,143.84,22.69986453]
[1642413688399,40.36294992,143.94,143.84,22.69986453]
[1642413689000,40.36294992,143.94,143.85,0.25]
[1642413689901,0.25,143.93,143.85,0.25]
[1642413692201,0.25,143.93,143.87,0.15366453]
[1642413695308,10.6773,143.93,143.87,0.15366453]
[1642413697112,10.6773,143.93,143.84,22.69983543]
[1642413697708,0.25,143.93,143.84,22.69983543]
[1642413698413,2.22990224,143.93,143.84,22.69983543]
[1642413699112,1.97990224,143.93,143.84,22.69983543]
[1642413699311,1.97990224,143.93,143.85,0.25]
[1642413699510,1.97990224,143.93,143.85,7.583]
[1642413700309,42.95741216,143.92,143.85,7.583]
[1642413700511,42.70741216,143.92,143.85,7.583]
[1642413700717,0.25,143.91,143.85,0.25]
[1642413702213,0.25,143.91,143.87,0.15366453]
[1642413707118,0.25,143.91,143.85,0.40363543]
[1642413712049,0.25,143.91,143.87,0.15366453]
[1642413717164,0.25,143.91,143.85,0.40363543]
[1642413718465,2.22990224,143.91,143.85,0.40363543]
[1642413720370,0.25,143.91,143.85,0.40363543]
[1642413721771,1.97990224,143.92,143.85,0.40363543]
[1642413721971,1.97990224,143.92,143.85,6.63363543]
[1642413722169,1.97990224,143.91,143.87,0.15366453]
[1642413722769,1.97990224,143.91,143.87,0.40366453]
[1642413723376,1.97990224,143.93,143.87,0.40366453]
[1642413723573,1.97990224,143.93,143.87,23.40176453]
[1642413724572,1.97990224,143.93,143.87,33.82426453]
[1642413724974,1.97990224,143.93,143.87,43.94426453]
[1642413725175,1.97990224,143.93,143.87,43.69426453]
[1642413725375,1.97990224,143.96,143.87,43.69426453]
[1642413726076,1.97990224,143.96,143.87,113.22426453]
[1642413726482,1.97990224,143.97,143.88,0.25]
[1642413726675,1.97990224,143.97,143.88,10.6718]
[1642413726877,0.25,143.96,143.89,59.56756057]
[1642413727076,6.3841275,143.96,143.89,24.1875]
[1642413727278,6.3841275,143.96,143.89,24.34113543]
[1642413728603,8.36402974,143.96,143.89,24.34113543]
[1642413729002,8.36402974,143.96,143.89,0.15363543]
[1642413729402,1.97990224,143.95,143.89,0.15363543]
[1642413729801,0.25,143.94,143.89,0.15363543]
[1642413732104,0.25,143.94,143.88,24.80169823]
[1642413736414,0.25,143.94,143.88,24.55169823]
[1642413737315,0.25,143.94,143.9,0.15341278]
[1642413742216,0.25,143.94,143.87,64.0479758]
[1642413742416,0.25,143.94,143.87,24.34498368]
[1642413742816,0.25,143.94,143.87,0.15338368]
[1642413743018,10.13504425,143.94,143.87,0.15338368]
[1642413743819,16.63421096,143.92,143.87,0.15338368]
[1642413744222,0.25,143.91,143.87,0.15338368]
[1642413747254,0.25,143.91,143.82,71.38523794]
[1642413748856,0.25,143.91,143.82,140.91523794]
[1642413749058,0.25,143.91,143.82,71.38523794]
[1642413749258,0.25,143.91,143.82,23.59182733]
[1642413750358,1.97990224,143.92,143.82,62.16842989]
[1642413750557,1.97990224,143.92,143.83,69.78]
[1642413750757,1.97990224,143.92,143.84,10.12]
[1642413750960,1.97990224,143.92,143.85,69.53]
[1642413751158,1.97990224,143.92,143.85,79.9]
[1642413751459,3.94821422,143.95,143.86,48.06436677]
[1642413751658,38.93258688,143.96,143.86,48.06436677]
[1642413751860,38.93258688,143.96,143.87,0.25]
[1642413752062,38.93258688,143.96,143.86,48.06436677]
[1642413752259,1.97990224,143.96,143.87,23.097]
[1642413753363,46.98237094,143.95,143.87,23.097]
[1642413753562,46.98237094,143.95,143.86,48.06436677]
[1642413753762,0.25,143.94,143.85,10.12]
[1642413754763,71.20617094,143.95,143.85,56.57814516]
[1642413755463,81.63257094,143.95,143.85,56.57814516]
[1642413755664,83.61247318,143.95,143.85,56.57814516]
[1642413756064,0.25,143.94,143.85,56.57814516]
[1642413756464,2.22990224,143.94,143.85,56.57814516]
[1642413757365,2.22990224,143.94,143.87,0.15345643]
[1642413760770,3.96894649,143.94,143.87,0.15345643]
[1642413760970,23.7878,143.93,143.87,0.15345643]
[1642413761171,31.8768,143.93,143.87,0.15345643]
[1642413761470,0.25,143.92,143.87,0.15345643]
[1642413761670,14.82140732,143.92,143.87,0.15345643]
[1642413761870,18.54035381,143.92,143.87,0.15345643]
[1642413762271,18.54035381,143.92,143.81,0.15342733]
[1642413762471,10.4301,143.91,143.81,0.15342733]
[1642413762669,79.9601,143.91,143.81,0.15342733]
[1642413762870,0.25,143.9,143.81,0.15342733]
[1642413763271,31.6444,143.9,143.81,0.15342733]
[1642413764070,41.7644,143.9,143.81,0.15342733]
[1642413764271,51.60861441,143.89,143.81,0.15342733]
[1642413764671,0.25,143.88,143.81,0.15342733]
[1642413766476,10.6816,143.88,143.81,0.15342733]
[1642413767378,10.6816,143.88,143.78,0.40351467]
[1642413767575,10.6816,143.88,143.78,0.15351467]
[1642413770079,12.42064425,143.88,143.78,0.15351467]
[1642413770280,18.08064425,143.88,143.78,0.15351467]
[1642413770679,87.61064425,143.88,143.78,0.15351467]
[1642413771280,89.59054649,143.88,143.78,0.15351467]
[1642413772081,10.12,143.87,143.77,0.15355837]
[1642413772283,10.4346,143.84,143.77,0.15355837]
[1642413772805,24.4019,143.83,143.77,0.15355837]
[1642413777111,0.25,143.83,143.75,23.75737294]
[1642413777413,23.6992,143.85,143.75,23.75737294]
[1642413777709,23.6992,143.85,143.75,23.50737294]
[1642413778711,23.6992,143.85,143.76,0.25]
[1642413779113,23.6992,143.85,143.75,33.93837294]
[1642413779312,23.6992,143.85,143.75,23.50737294]
[1642413780012,30.5872,143.85,143.75,23.50737294]
[1642413781016,42.75984425,143.85,143.75,0.15357294]
[1642413781215,52.87984425,143.85,143.75,0.15357294]
[1642413782219,52.87984425,143.85,143.71,0.15360209]
[1642413782418,52.87984425,143.85,143.71,24.86530209]
[1642413783218,54.85974649,143.85,143.71,24.86530209]
[1642413783822,3.62807861,143.84,143.71,24.86530209]
[1642413784021,10.4372,143.81,143.71,24.86530209]
[1642413784419,7.76350941,143.8,143.71,24.86530209]
[1642413785320,18.20080941,143.8,143.71,24.86530209]
[1642413787225,18.20080941,143.8,143.73,0.15366041]
[1642413788926,97.85080941,143.8,143.73,0.15366041]
[1642413789125,99.58985366,143.8,143.73,0.15366041]
[1642413789528,24.9129,143.79,143.73,0.15366041]
[1642413789727,10.4407,143.78,143.73,0.15366041]
[1642413789926,12.42974425,143.78,143.73,0.15366041]
[1642413791455,10.6907,143.78,143.73,0.15366041]
[1642413792230,10.6907,143.78,143.68,23.56523124]
[1642413792630,1.73904425,143.77,143.68,23.56523124]
[1642413792832,0.25,143.76,143.68,23.56523124]
[1642413793034,10.6905,143.76,143.68,23.56523124]
[1642413793531,35.16770309,143.75,143.68,23.56523124]
[1642413793933,0.25,143.74,143.68,23.56523124]
[1642413797137,0.25,143.74,143.7,0.15370417]
[1642413799766,35.16770309,143.75,143.7,0.15370417]
[1642413799967,10.4405,143.76,143.7,0.15370417]
[1642413801369,67.87486378,143.77,143.7,0.15370417]
[1642413801969,67.87486378,143.77,143.68,23.56527499]
[1642413802170,0.25,143.76,143.68,23.56527499]
[1642413804069,0.25,143.78,143.68,33.68527499]
[1642413804273,0.25,143.79,143.68,33.68527499]
[1642413804470,38.82371748,143.79,143.68,33.68527499]
[1642413806473,49.26191748,143.79,143.68,33.68527499]
[1642413807071,24.9465,143.78,143.7,0.15370417]
[1642413807273,0.25,143.77,143.7,0.15370417]
[1642413810379,10.6896,143.77,143.7,0.15370417]
[1642413810580,12.42864425,143.77,143.7,0.15370417]
[1642413810778,69.53,143.76,143.7,0.15370417]
[1642413811182,26.52284425,143.75,143.7,0.15370417]
[1642413811380,12.86006078,143.74,143.7,0.15370417]
[1642413811579,69.53,143.73,143.7,0.15370417]
[1642413811782,0.53219996,143.72,143.7,0.15370417]
[1642413812180,12.39124421,143.72,143.7,0.15370417]
[1642413812382,12.39124421,143.72,143.64,1.93123395]
[1642413812383,35.0,143.7,143.64,1.93123395]
[1642413812583,49.01991748,143.69,143.64,3.395e-05]
[1642413812781,69.53,143.68,143.64,3.395e-05]
[1642413813185,0.25,143.67,143.64,3.395e-05]
[1642413813381,1.98904425,143.67,143.64,3.395e-05]
[1642413813582,0.53219996,143.66,143.64,3.395e-05]
[1642413813785,10.4491,143.65,143.61,3.79518556]
[1642413813982,12.86006078,143.64,143.56,478.83782918]
[1642413814182,13.11006078,143.64,143.56,478.83782918]
[1642413814389,0.25,143.64,143.56,478.83782918]
[1642413814783,0.25,143.64,143.57,23.153]
[1642413814983,10.12,143.7,143.57,23.403]
[1642413815185,0.25,143.66,143.57,29.252]
[1642413815384,0.25,143.66,143.57,39.4461]
[1642413815783,0.25,143.66,143.58,0.25]
[1642413815984,72.99068602,143.69,143.58,0.25]
[1642413816184,83.11068602,143.69,143.58,0.25]
[1642413816585,83.11068602,143.69,143.57,33.5971]
[1642413817284,0.25,143.68,143.59,0.07711653]
[1642413821091,12.43554425,143.68,143.59,0.07711653]
[1642413821593,0.25,143.68,143.59,0.07711653]
[1642413822187,0.25,143.68,143.58,10.6935]
[1642413822385,11.85904425,143.71,143.59,23.9202]
[1642413822386,0.25,143.7,143.59,23.9202]
[1642413823089,38.99765253,143.7,143.6,37.85071336]
[1642413823789,63.19225253,143.7,143.61,23.6232]
[1642413827092,0.25,143.7,143.61,23.6232]
[1642413827294,0.25,143.7,143.63,0.0770581]
[1642413827793,0.25,143.73,143.63,0.0770581]
[1642413828394,81.49420331,143.74,143.63,22.5823581]
[1642413828795,81.49420331,143.74,143.64,0.25]
[1642413829400,83.23324756,143.74,143.63,22.5823581]
[1642413830197,0.25,143.73,143.63,22.5823581]
[1642413830596,1.98904425,143.73,143.63,22.5823581]
[1642413831399,10.443,143.72,143.63,22.5823581]
[1642413831796,0.25,143.71,143.63,22.5823581]
[1642413832197,0.25,143.71,143.65,0.0770289]
[1642413834330,12.43254425,143.71,143.65,0.0770289]
[1642413834530,22.55254425,143.71,143.65,0.0770289]
[1642413836628,20.8135,143.71,143.65,0.0770289]
[1642413837230,92.08254425,143.71,143.63,22.5822997]
[1642413837730,92.08254425,143.71,143.63,0.0769997]
[1642413837930,4.71186633,143.69,143.63,0.0769997]
[1642413838432,0.25,143.68,143.63,0.0769997]
[1642413840230,4.71186633,143.69,143.63,0.0769997]
[1642413841933,0.25,143.68,143.63,0.0769997]
[1642413842137,0.25,143.68,143.61,22.6303289]
[1642413847144,0.25,143.68,143.63,0.0770581]
[1642413848742,0.25,143.69,143.63,0.0770581]
[1642413852152,0.25,143.69,143.61,22.6303289]
[1642413857148,0.25,143.69,143.63,0.0770581]
[1642413857352,24.5707,143.73,143.63,0.0770581]
[1642413857650,11.24929138,143.74,143.63,0.0770581]
[1642413858748,0.25,143.73,143.63,0.0770581]
[1642413859550,0.25,143.73,143.64,42.30446494]
[1642413859751,0.25,143.73,143.65,24.0141]
[1642413861353,11.24929138,143.74,143.65,24.0141]
[1642413861752,11.24929138,143.74,143.66,0.25]
[1642413862153,11.24929138,143.74,143.67,0.0769997]
[1642413862751,0.25,143.73,143.67,0.0769997]
[1642413863957,69.78,143.73,143.67,0.0769997]
[1642413865059,93.6508,143.73,143.67,0.0769997]
[1642413866262,104.0929,143.73,143.67,0.0769997]
[1642413867181,104.0929,143.73,143.65,24.09107052]
[1642413867883,104.0929,143.73,143.65,0.07697052]
[1642413868088,115.95194425,143.73,143.65,0.07697052]
[1642413872191,115.95194425,143.73,143.61,23.8862997]
[1642413872388,115.95194425,143.73,143.62,0.25]
[1642413872589,46.42194425,143.73,143.62,0.25]
[1642413872895,46.17194425,143.73,143.62,0.25]
[1642413873289,44.4329,143.73,143.62,0.25]
[1642413874091,0.25,143.72,143.62,0.25]
[1642413874893,44.4329,143.73,143.62,0.25]
[1642413875094,33.9908,143.73,143.62,0.25]
[1642413875497,33.9908,143.73,143.62,10.6906]
[1642413876098,33.9908,143.73,143.63,24.9295]
[1642413876398,33.9908,143.73,143.64,0.25]
[1642413876801,0.25,143.72,143.64,0.25]
[1642413877203,0.25,143.72,143.64,0.3270435]
[1642413882015,0.25,143.72,143.64,0.0770435]
[1642413882215,0.25,143.72,143.66,0.0770143]
[1642413882415,1.98904425,143.72,143.66,0.0770143]
[1642413882615,10.12,143.71,143.66,0.0770143]
[1642413882815,13.78094166,143.7,143.66,0.0770143]
[1642413883015,37.97884166,143.7,143.66,0.0770143]
[1642413884416,48.42314166,143.7,143.66,0.0770143]
[1642413886740,50.16218591,143.7,143.66,0.0770143]
[1642413886943,60.28218591,143.7,143.66,0.0770143]
[1642413887142,10.4465,143.67,143.61,0.07698511]
[1642413887341,0.25,143.66,143.61,0.07698511]